bitfinex/quotes_SOLUSD_20241121
["timestamp","ask_amount","ask_price","bid_price","bid_amount"]
[1732201642088,30.08341071,249.38,249.28,30.08341071]
[1732201642288,30.08341071,249.4,249.3,30.08341071]
[1732201642604,30.08341071,249.36,249.26,30.08341071]
[1732201642902,30.08341071,249.32,249.22,30.08341071]
[1732201643212,30.08341071,249.3,249.18,30.08341071]
[1732201643393,54.6166,249.46,249.22,30.08341071]
[1732201643394,20.0,249.32,249.22,30.08341071]
[1732201643709,30.08341071,249.4,249.29,30.08341071]
[1732201643901,30.08341071,249.38,249.27,30.08341071]
[1732201644103,34.0734,249.46,249.29,30.08341071]
[1732201644309,30.08341071,249.35,249.23,30.08341071]
[1732201644616,30.08341071,249.4,249.27,30.08341071]
[1732201644791,30.08341071,249.38,249.27,30.08341071]
[1732201644990,30.08341071,249.33,249.21,30.08341071]
[1732201645211,4.008,249.5,249.31,30.08341071]
[1732201645389,4.008,249.5,249.4,30.08341071]
[1732201645590,4.0076,249.53,249.44,30.08341071]
[1732201645790,10.0143,249.65,249.48,30.08341071]
[1732201645990,24.0163,249.83,249.57,30.08341071]
[1732201646216,24.0163,249.83,249.59,30.08341071]
[1732201646217,30.08341071,249.71,249.59,30.08341071]
[1732201646517,30.08341071,249.77,249.65,30.08341071]
[1732201646951,30.08341071,249.71,249.61,30.08341071]
[1732201647413,34.08711071,249.77,249.65,30.08341071]
[1732201647713,30.08341071,249.73,249.61,30.08341071]
[1732201647917,30.08341071,249.69,249.59,10.0164]
[1732201648091,30.08341071,249.72,249.51,30.08341071]
[1732201648293,30.08341071,249.65,249.46,0.5]
[1732201648509,30.08341071,249.63,249.53,30.08341071]
[1732201648697,30.08341071,249.61,249.5,30.08341071]
[1732201648893,10.0084,249.79,249.5,0.5]
[1732201649119,30.08341071,249.71,249.61,30.08341071]
[1732201649410,30.08341071,249.63,249.49,30.08341071]
[1732201649614,1.0,249.71,249.45,30.08341071]
[1732201649822,30.08341071,249.72,249.27,5.43168565]
[1732201649823,0.5,249.65,249.27,5.43168565]
[1732201649997,0.5,249.6,249.32,2.89754135]
[1732201650197,20.0,249.58,249.33,2.89754135]
[1732201650398,20.0,249.54,249.32,2.89754135]
[1732201650618,20.0,249.5,249.27,2.89754135]
[1732201650832,20.0,249.5,249.28,30.08341071]
[1732201650833,4.0099,249.38,249.28,30.08341071]
[1732201651119,4.0099,249.38,249.3,30.08341071]
[1732201651120,24.0099,249.38,249.3,30.08341071]
[1732201651324,20.0,249.39,249.28,30.08341071]
[1732201651530,20.0,249.39,249.29,30.08031563]
[1732201651903,20.0,249.39,249.31,30.08031563]
[1732201652131,30.08031563,249.38,249.23,10.0308]
[1732201652318,20.0,249.37,249.27,30.08031563]
[1732201652926,4.0102,249.36,249.27,30.08031563]
[1732201653223,20.0,249.34,249.25,30.08031563]
[1732201653431,30.08031563,249.4,249.31,30.08031563]
[1732201653725,20.0,249.39,249.31,30.08031563]
[1732201653933,20.0,249.39,249.24,30.08031563]
[1732201653934,30.08031563,249.36,249.17,10.0333]
[1732201654119,30.08031563,249.36,249.24,30.08031563]
[1732201654120,20.0,249.34,249.24,30.08031563]
[1732201654317,20.0,249.32,249.22,30.08031563]
[1732201654628,20.047,249.42,249.22,30.08031563]
[1732201654629,30.08031563,249.5,249.31,30.08031563]
[1732201654826,10.0186,249.54,249.14,0.5]
[1732201655014,10.0186,249.54,249.19,34.1105]
[1732201655325,0.5,249.48,249.19,14.0455]
[1732201655517,0.5,249.46,249.19,14.0455]
[1732201655715,10.0186,249.54,249.19,14.0455]
[1732201655922,10.0186,249.54,249.37,30.07124107]
[1732201655923,30.07124107,249.48,249.37,30.07124107]
[1732201656126,30.07124107,249.51,249.39,30.07124107]
[1732201656346,30.07124107,249.49,249.37,30.07124107]
[1732201656632,30.07124107,249.51,249.26,13.0933]
[1732201656810,4.007,249.56,249.26,13.0933]
[1732201656811,0.5,249.54,249.27,2.90654985]
[1732201657007,30.07124107,249.38,249.28,32.97779092]
[1732201657206,14.0263,249.53,249.24,30.07124107]
[1732201657207,30.07124107,249.36,249.24,30.07124107]
[1732201657407,30.07124107,249.38,249.28,30.07124107]
[1732201657710,0.5,249.51,249.28,30.07124107]
[1732201657905,10.0163,249.6,249.3,0.5]
[1732201658117,10.0163,249.6,249.19,34.1105]
[1732201658118,4.0065,249.59,249.53,30.07124107]
[1732201658323,4.0054,249.66,249.55,30.07124107]
[1732201658831,4.0054,249.66,249.36,0.5]
[1732201658832,30.07124107,249.65,249.53,30.07124107]
[1732201659007,30.07124107,249.65,249.36,0.5]
[1732201659008,30.07124107,249.58,249.46,30.07124107]
[1732201659212,30.07124107,249.63,249.53,30.07124107]
[1732201659413,4.0057,249.64,249.55,30.07124107]
[1732201659635,4.0057,249.64,249.43,23.776884]
[1732201659636,20.02,249.75,249.44,12.8316]
[1732201659828,4.0041,249.74,249.47,0.5]
[1732201660016,4.0041,249.74,249.48,0.5]
[1732201660223,4.0041,249.74,249.45,23.776884]
[1732201660425,4.0041,249.74,249.44,12.8316]
[1732201660426,34.0353,249.74,249.44,12.3316]
[1732201660626,30.07124107,249.65,249.53,30.07124107]
[1732201660819,4.0014,249.91,249.64,30.07124107]
[1732201661031,10.0051,249.88,249.68,30.07124107]
[1732201661215,30.07124107,249.79,249.66,30.07124107]
[1732201661416,30.07124107,249.75,249.64,30.07124107]
[1732201661734,30.07124107,249.73,249.62,30.07124107]
[1732201662314,23.776884,249.72,249.62,30.07124107]
[1732201662514,23.776884,249.7,249.6,30.07124107]
[1732201662721,23.776884,249.68,249.57,30.07124107]
[1732201662922,23.776884,249.68,249.48,30.07124107]
[1732201662923,23.776884,249.68,249.6,30.07124107]
[1732201663226,4.0052,249.67,249.6,30.07124107]
[1732201663740,4.0052,249.67,249.48,44.10024107]
[1732201663741,4.0052,249.67,249.56,30.07124107]
[1732201664030,4.0052,249.67,249.58,30.07124107]
[1732201664242,4.0052,249.67,249.6,30.07124107]
[1732201664442,4.0052,249.67,249.56,30.07124107]
[1732201664627,20.0,249.65,249.56,30.07124107]
[1732201664825,4.0052,249.67,249.52,30.07124107]
[1732201664826,50.07124107,249.63,249.52,30.07124107]
[1732201665129,20.0,249.57,249.46,30.07124107]
[1732201665337,50.07124107,249.59,249.38,30.3832]
[1732201665338,50.07124107,249.59,249.48,30.07124107]
[1732201665729,23.776884,249.58,249.48,30.07124107]
[1732201666033,4.0062,249.61,249.56,30.07124107]
[1732201666216,34.07744107,249.61,249.5,30.07124107]
[1732201666423,20.0,249.6,249.52,30.07124107]
[1732201666833,24.0062,249.61,249.54,30.07124107]
[1732201667031,23.776884,249.6,249.56,30.07124107]
[1732201667232,20.0,249.59,249.56,30.07124107]
[1732201667449,4.0062,249.61,249.56,30.07124107]
[1732201667620,4.0062,249.61,249.48,30.07124107]
[1732201667621,4.0062,249.61,249.6,30.07124107]
[1732201667822,4.0051,249.68,249.6,30.07124107]
[1732201668224,14.0179,249.68,249.58,30.07124107]
[1732201668937,0.5,249.74,249.48,30.07124107]
[1732201668938,30.07124107,249.67,249.56,30.07124107]
[1732201669138,23.776884,249.62,249.52,30.07124107]
[1732201669337,20.0,249.61,249.52,30.07124107]
[1732201669541,20.0,249.59,249.51,30.07124107]
[1732201669739,14.019,249.66,249.41,0.5]
[1732201669927,14.019,249.66,249.36,50.12254107]
[1732201669928,4.0054,249.66,249.46,0.5]
[1732201670525,4.0054,249.66,249.44,0.5]
[1732201670843,44.09024107,249.66,249.36,54.1383]
[1732201671144,30.07124107,249.62,249.5,30.07124107]
[1732201671320,30.07124107,249.62,249.37,14.0353]
[1732201671321,30.07124107,249.58,249.44,30.07124107]
[1732201671523,30.07124107,249.56,249.44,30.07124107]
[1732201671833,30.07124107,249.49,249.21,12.5868]
[1732201672042,20.0,249.46,249.39,30.07124107]
[1732201672642,20.0,249.46,249.25,10.0299]
[1732201672643,20.0,249.5,249.41,30.07124107]
[1732201672820,20.0,249.5,249.25,10.0299]
[1732201672821,30.07124107,249.45,249.33,30.07124107]
[1732201673030,20.0,249.48,249.29,30.07124107]
[1732201673031,20.0,249.4,249.29,30.07124107]
[1732201673229,23.776884,249.39,249.27,30.07124107]
[1732201673429,20.0,249.4,249.29,30.07124107]
[1732201673640,20.0,249.4,249.19,14.0453]
[1732201673641,6.21129426,249.84,249.6,0.5]
[1732201673842,4.0014,249.91,249.79,30.07124107]
[1732201674026,4.0014,249.91,249.83,30.07124107]
[1732201674225,4.0014,249.91,249.72,30.07124107]
[1732201674226,4.0014,249.91,249.85,30.07124107]
[1732201675040,4.0014,249.91,249.82,30.07124107]
[1732201675245,4.0014,249.91,249.79,30.07124107]
[1732201675419,4.0014,249.91,249.72,30.07124107]
[1732201675420,30.07124107,249.9,249.77,30.07124107]
[1732201675624,30.07124107,249.88,249.77,30.07124107]
[1732201675822,4.0014,249.91,249.77,30.07124107]
[1732201675823,30.07124107,249.9,249.77,30.07124107]
[1732201676026,4.0014,249.91,249.77,30.07124107]
[1732201676027,30.07124107,249.88,249.77,30.07124107]
[1732201676237,4.0014,249.91,249.74,30.07124107]
[1732201676238,14.005,249.91,249.74,30.07124107]
[1732201676444,30.07124107,249.88,249.76,30.07124107]
[1732201676824,30.07124107,249.9,249.79,30.07124107]
[1732201677028,4.0014,249.91,249.72,30.07124107]
[1732201677247,30.07124107,249.88,249.77,30.07124107]
[1732201677546,34.07264107,249.91,249.79,30.07124107]
[1732201677924,30.07124107,249.89,249.79,30.07124107]
[1732201678239,30.07124107,249.83,249.72,30.07124107]
[1732201678548,23.776884,249.9,249.71,30.07124107]
[1732201678549,30.07124107,249.84,249.71,30.07124107]
[1732201678722,9.9998,250.01,249.79,30.07124107]
[1732201679040,30.07124107,249.91,249.79,30.07124107]
[1732201679234,30.07124107,249.89,249.77,30.07124107]
[1732201679843,0.5,250.04,249.72,30.07124107]
[1732201679844,30.07124107,249.94,249.83,30.07124107]
[1732201680146,30.07124107,249.96,249.85,30.07124107]
[1732201680325,30.07124107,249.98,249.85,30.07124107]
[1732201680748,30.07124107,249.96,249.83,30.07124107]
[1732201680928,30.07124107,249.96,249.85,30.07124107]
[1732201681136,30.07124107,249.98,249.87,30.07124107]
[1732201681364,30.07124107,250.0,249.89,30.07124107]
[1732201681563,30.07124107,249.96,249.85,30.07124107]
[1732201681852,3.999,250.06,249.85,30.07124107]
[1732201681853,30.07124107,250.0,249.89,30.07124107]
[1732201682154,9.9946,250.14,249.84,30.57124107]
[1732201682155,30.07124107,250.02,249.91,30.07124107]
[1732201682362,30.07124107,250.02,249.92,23.776884]
[1732201682534,30.07124107,250.0,249.89,30.07124107]
[1732201682739,30.07124107,250.0,249.83,0.5]
[1732201682740,30.07124107,249.9,249.81,30.07124107]
[1732201683043,30.07124107,249.92,249.81,30.07124107]
[1732201683236,30.07124107,249.96,249.85,30.07124107]
[1732201683857,30.07124107,249.96,249.81,14.0106]
[1732201683858,30.07124107,249.88,249.81,10.0076]
[1732201684236,30.07124107,249.92,249.81,40.07884107]
[1732201684632,30.07124107,249.9,249.81,10.0076]
[1732201684953,30.07124107,249.88,249.81,10.0076]
[1732201685347,30.07124107,249.83,249.62,13.5226]
[1732201685556,30.07124107,249.84,249.74,30.07124107]
[1732201685850,20.4973,250.04,249.77,0.5]
[1732201685851,19.9973,250.04,249.77,0.5]
[1732201686039,9.9969,250.08,249.84,0.5]
[1732201686239,13.986,250.25,249.91,0.5]
[1732201686453,13.986,250.25,249.91,1.0]
[1732201686659,13.986,250.25,249.96,1.0]
[1732201686842,13.986,250.25,249.99,0.5]
[1732201687052,13.986,250.25,250.01,23.776884]
[1732201687241,30.07124107,250.1,250.01,33.776084]
[1732201687439,30.07124107,250.06,249.95,34.07184107]
[1732201687837,20.23812991,250.31,249.95,34.07184107]
[1732201687838,3.994,250.37,250.11,31.2961]
[1732201688041,6.21129426,250.59,250.11,31.2961]
[1732201688042,0.73618901,250.36,250.29,30.07124107]
[1732201688256,0.73618901,250.36,250.17,23.776884]
[1732201688449,0.73618901,250.36,250.27,0.5]
[1732201688642,0.73618901,250.36,250.17,20.5992504]
[1732201688643,3.9937,250.6,250.3,23.776884]
[1732201688841,0.5,250.55,250.29,3.9937]
[1732201689048,0.5,250.46,250.11,31.2961]
[1732201689263,0.5,250.46,250.15,30.07124107]
[1732201689264,30.07124107,250.26,250.15,30.07124107]
[1732201689470,30.07124107,250.22,250.11,61.36734107]
[1732201689654,30.07124107,250.24,250.13,30.07124107]
[1732201690167,30.07124107,250.21,250.1,30.07124107]
[1732201690477,30.07124107,250.34,250.19,30.07124107]
[1732201690774,3.994,250.37,250.19,30.07124107]
[1732201691274,9.982,250.46,250.19,44.06044107]
[1732201691442,9.982,250.46,250.2,23.776884]
[1732201691645,30.07124107,250.42,250.31,30.07124107]
[1732201692272,30.07124107,250.46,250.35,30.07124107]
[1732201692473,34.06324107,250.5,250.39,30.07124107]
[1732201692846,30.07124107,250.52,250.42,30.07124107]
[1732201693145,30.07124107,250.48,250.27,12.2767]
[1732201693456,3.992,250.5,250.41,30.07124107]
[1732201693659,29.9293,250.59,250.32,30.07124107]
[1732201693660,30.07124107,250.56,250.45,30.07124107]
[1732201694465,30.07124107,250.47,250.35,30.07124107]
[1732201694668,30.07124107,250.45,250.35,30.07124107]
[1732201694846,30.07124107,250.56,250.08,49.53149356]
[1732201694847,30.07124107,250.41,250.31,30.07124107]
[1732201695046,30.57124107,250.56,250.2,9.9916]
[1732201695047,30.07124107,250.39,250.29,30.07124107]
[1732201695268,30.07124107,250.4,250.31,30.07124107]
[1732201695570,30.07124107,250.36,250.25,30.07124107]
[1732201695780,30.07124107,250.38,250.27,30.07124107]
[1732201695976,30.07124107,250.42,250.31,30.07124107]
[1732201696581,30.07124107,250.34,250.24,30.07124107]
[1732201696752,30.07124107,250.3,250.12,9.9948]
[1732201696953,24.276884,250.43,250.17,30.07124107]
[1732201696954,30.07124107,250.28,250.17,30.07124107]
[1732201697154,30.07124107,250.24,250.13,30.07124107]
[1732201697372,30.07124107,250.21,250.11,30.07124107]
[1732201697568,30.07124107,250.25,250.15,30.07124107]
[1732201697769,30.07124107,250.29,250.19,30.07124107]
[1732201697983,30.07124107,250.27,250.17,30.07124107]
[1732201698192,30.07124107,250.23,250.13,30.07124107]
[1732201698353,30.07124107,250.17,250.07,30.07124107]
[1732201698556,14.4826,250.31,249.99,10.0002]
[1732201698557,20.0,250.3,250.0,10.0]
[1732201698759,20.0,250.3,250.05,0.5]
[1732201699068,33.9578,250.31,250.06,0.91406633]
[1732201699492,13.9776,250.4,250.08,0.5]
[1732201699673,13.9776,250.4,250.21,30.07124107]
[1732201699674,30.07124107,250.33,250.21,30.07124107]
[1732201699880,30.07124107,250.27,250.17,30.07124107]
[1732201700458,30.07124107,250.2,250.1,30.07124107]
[1732201700868,30.07124107,250.24,250.12,30.07124107]
[1732201701162,30.07124107,250.24,250.14,30.07124107]
[1732201701360,23.996,250.25,250.16,30.07124107]
[1732201701675,3.9956,250.28,250.21,30.07124107]
[1732201701880,3.9956,250.28,250.19,30.07124107]
[1732201702385,3.9956,250.28,250.09,13.9949]
[1732201702586,3.9956,250.28,250.23,30.07124107]
[1732201702880,3.9956,250.28,250.21,30.07124107]
[1732201703085,34.06684107,250.28,250.17,30.07124107]
[1732201703263,34.06684107,250.28,250.19,30.07124107]
[1732201703968,3.9956,250.28,250.21,30.07124107]
[1732201704364,34.06684107,250.28,250.19,30.07124107]
[1732201704569,20.0,250.39,250.21,30.07124107]
[1732201704766,30.07124107,250.25,250.15,30.07124107]
[1732201704989,20.0,250.24,250.13,30.07124107]
[1732201705170,20.0,250.24,250.1,0.91392014]
[1732201705485,30.07124107,250.21,250.11,30.07124107]
[1732201705685,30.07124107,250.21,250.1,0.91392014]
[1732201705686,30.07124107,250.2,250.1,0.91392014]
[1732201705983,30.07124107,250.32,250.17,30.07124107]
[1732201705984,20.0,250.26,250.17,30.07124107]
[1732201706186,20.0,250.26,250.18,30.07124107]
[1732201706564,20.0,250.26,250.14,30.07124107]
[1732201706565,34.06724107,250.25,250.14,30.07124107]
[1732201706783,30.07124107,250.26,250.16,30.07124107]
[1732201706965,3.996,250.25,250.16,30.07124107]
[1732201707171,30.07124107,250.24,250.15,0.91373747]
[1732201707787,30.07124107,250.16,250.15,0.91373747]
[1732201707961,13.986,250.25,250.15,0.91373747]
[1732201708162,30.07124107,250.24,250.15,0.91373747]
[1732201708690,3.9963,250.23,250.15,0.91373747]
[1732201709187,19.968,250.4,250.16,30.07124107]
[1732201709482,30.07124107,250.24,250.15,0.91373747]
[1732201709681,30.07124107,250.22,250.15,0.91373747]
[1732201710273,30.07124107,250.2,250.15,0.91373747]
[1732201710483,30.07124107,250.17,250.15,0.91373747]
[1732201710688,30.07124107,250.19,250.15,0.91373747]
[1732201710889,30.07124107,250.17,250.15,0.91373747]
[1732201711396,20.0,250.16,250.15,0.91373747]
[1732201711565,20.0,250.16,249.97,30.07124107]
[1732201711774,30.07124107,250.09,249.99,30.07124107]
[1732201712065,30.07124107,250.13,250.03,30.07124107]
[1732201712265,9.9894,250.27,249.96,30.07124107]
[1732201712266,9.9894,250.27,250.09,30.07124107]
[1732201712461,30.07124107,250.19,250.09,30.07124107]
[1732201712881,30.07124107,250.19,250.1,3.9984]
[1732201713278,30.07124107,250.19,250.1,9.996]
[1732201713279,34.06824107,250.19,250.1,9.996]
[1732201713481,0.5,250.36,250.0,1.0]
[1732201713482,4.1453505,250.43,250.13,30.07124107]
[1732201713687,30.07124107,250.22,250.11,30.07124107]
[1732201713998,30.07124107,250.32,250.07,30.07124107]
[1732201713999,30.07124107,250.18,250.07,30.07124107]
[1732201714371,30.07124107,250.18,250.09,30.07124107]
[1732201714701,30.07124107,250.2,250.09,30.07124107]
[1732201714994,30.07124107,250.18,250.08,3.9986]
[1732201715503,9.9886,250.29,249.98,10.0004]
[1732201715504,30.07124107,250.09,249.98,10.0004]
[1732201715667,30.07124107,250.13,250.02,30.07124107]
[1732201715861,30.07124107,250.2,250.02,30.07124107]
[1732201715862,30.07124107,250.11,250.02,30.07124107]
[1732201716389,43.776884,250.28,250.04,30.07124107]
[1732201716390,30.07124107,250.14,250.04,30.07124107]
[1732201716686,3.9976,250.15,250.06,30.07124107]
[1732201716895,9.9911,250.23,250.04,3.9993]
[1732201716896,3.9973,250.17,250.08,30.07124107]
[1732201717188,30.07124107,250.16,250.06,30.07124107]
[1732201717992,3.9973,250.17,249.92,0.5]
[1732201717993,30.07124107,250.08,249.94,42.52364107]
[1732201718190,33.9769,250.17,249.94,42.52364107]
[1732201718191,30.07124107,250.05,249.94,46.52454107]
[1732201718398,30.07124107,250.05,249.94,42.52364107]
[1732201718579,33.9769,250.17,249.94,42.52364107]
[1732201718580,34.07024107,250.07,249.98,30.07124107]
[1732201718786,3.9984,250.1,250.02,30.07124107]
[1732201719991,19.9814,250.24,250.02,30.07124107]
[1732201719992,30.07124107,250.15,250.06,30.07124107]
[1732201720198,30.07124107,250.17,250.06,30.07124107]
[1732201720693,30.07124107,250.15,250.04,30.07124107]
[1732201720898,13.9876,250.22,250.08,30.07124107]
[1732201720899,30.07124107,250.18,250.08,30.07124107]
[1732201721082,30.07124107,250.14,250.04,30.07124107]
[1732201721399,13.9876,250.22,250.0,30.07124107]
[1732201721604,30.07124107,250.09,249.98,30.07124107]
[1732201721781,30.07124107,250.04,249.94,30.07124107]
[1732201722104,3.9995,250.03,249.94,30.07124107]
[1732201722400,30.07124107,249.98,249.88,30.07124107]
[1732201722782,30.07124107,249.96,249.86,30.07124107]
[1732201723205,13.9983,250.03,249.82,55.0645]
[1732201723206,30.07124107,249.94,249.84,30.07124107]
[1732201723497,13.9983,250.03,249.88,30.07124107]
[1732201723498,30.07124107,249.98,249.88,30.07124107]
[1732201723793,30.07124107,249.98,249.82,49.0601]
[1732201723794,30.07124107,249.96,249.86,30.07124107]
[1732201723996,33.9959,250.03,249.82,55.0645]
[1732201723997,30.07124107,249.92,249.82,30.07124107]
[1732201724178,30.07124107,249.92,249.78,4.0034]
[1732201724179,30.07124107,249.9,249.8,30.07124107]
[1732201724375,13.9988,250.02,249.82,30.07124107]
[1732201724676,30.07124107,249.98,249.9,30.07124107]
[1732201724889,30.07124107,249.98,249.88,30.07124107]
[1732201725094,20.0,250.01,249.77,14.0128]
[1732201725095,20.0,249.93,249.82,30.07124107]
[1732201725277,30.07124107,249.9,249.8,30.07124107]
[1732201725784,30.07124107,249.96,249.86,30.07124107]
[1732201725986,4.0003,249.98,249.89,30.07124107]
[1732201726305,30.07124107,250.03,249.93,30.07124107]
[1732201726883,30.07124107,250.01,249.89,30.07124107]
[1732201727094,30.07124107,249.99,249.88,10.0048]
[1732201727397,30.07124107,249.91,249.81,30.07124107]
[1732201727600,30.07124107,249.91,249.82,2.82903025]
[1732201727800,33.9904,250.07,249.82,2.82903025]
[1732201727801,0.5,250.0,249.83,30.07124107]
[1732201728004,20.0,249.86,249.77,30.07124107]
[1732201728184,20.0,249.86,249.74,30.07124107]
[1732201728185,30.07124107,249.85,249.74,30.07124107]
[1732201728499,20.0,249.86,249.76,30.07124107]
[1732201728678,30.07124107,249.85,249.74,30.07124107]
[1732201728882,20.0,249.84,249.76,30.07124107]
[1732201729184,20.0,249.84,249.69,27.0212]
[1732201729185,20.0,249.83,249.73,30.07124107]
[1732201729383,30.07124107,249.8,249.69,30.07124107]
[1732201729596,20.0,249.79,249.69,30.07124107]
[1732201729810,30.07124107,249.78,249.69,30.07124107]
[1732201729983,4.0036,249.77,249.69,30.07124107]
[1732201730186,20.0,249.75,249.65,30.07124107]
[1732201730506,30.07124107,249.76,249.65,30.07124107]
[1732201730805,24.0036,249.77,249.69,30.07124107]
[1732201731009,4.0036,249.77,249.69,30.07124107]
[1732201731183,4.0036,249.77,249.61,0.60063928]
[1732201731184,4.0036,249.77,249.71,30.07124107]
[1732201731584,4.0036,249.77,249.69,30.07124107]
[1732201732188,4.0036,249.77,249.71,30.07124107]
[1732201732606,4.0036,249.77,249.69,30.07124107]
[1732201732908,30.07124107,249.75,249.65,30.07124107]
[1732201733081,30.07124107,249.73,249.63,30.07124107]
[1732201733705,30.07124107,249.75,249.65,30.07124107]
[1732201733905,34.07484107,249.77,249.67,30.07124107]
[1732201734115,30.07124107,249.75,249.65,30.07124107]
[1732201734312,30.07124107,249.71,249.61,30.07124107]
[1732201734905,23.776884,249.74,249.52,0.5]
[1732201734906,30.07124107,249.62,249.52,30.07124107]
[1732201735106,30.07124107,249.6,249.52,30.07124107]
[1732201735406,30.07124107,249.64,249.54,30.07124107]
[1732201735606,30.07124107,249.7,249.6,30.07124107]
[1732201735928,30.07124107,249.72,249.62,30.07124107]
[1732201736219,14.0128,249.77,249.62,30.07124107]
[1732201736220,30.07124107,249.7,249.62,30.07124107]
[1732201736427,30.07124107,249.72,249.62,30.07124107]
[1732201736812,30.07124107,249.68,249.6,10.016]
[1732201737029,30.07124107,249.68,249.6,14.0224]
[1732201737331,30.07124107,249.74,249.64,30.07124107]
[1732201737516,30.07124107,249.76,249.66,30.07124107]
[1732201737834,30.07124107,249.7,249.6,30.07124107]
[1732201738134,30.07124107,249.72,249.62,30.07124107]
[1732201738428,14.01,249.82,249.61,30.07124107]
[1732201738635,30.07124107,249.71,249.61,30.07124107]
[1732201738831,14.01,249.82,249.48,31.07124107]
[1732201738832,30.07124107,249.65,249.55,30.07124107]
[1732201739133,30.07124107,249.63,249.51,30.07124107]
[1732201739434,30.07124107,249.61,249.49,40.09164107]
[1732201739639,30.07124107,249.59,249.49,30.07124107]
[1732201739930,30.07124107,249.61,249.51,30.07124107]
[1732201740110,30.07124107,249.63,249.53,30.07124107]
[1732201740311,34.07714107,249.63,249.53,30.07124107]
[1732201740527,30.07124107,249.63,249.53,30.07124107]
[1732201740720,30.07124107,249.65,249.55,30.07124107]
[1732201740921,30.07124107,249.63,249.53,30.07124107]
[1732201741108,30.07124107,249.59,249.49,40.09164107]
[1732201741316,30.07124107,249.59,249.49,30.07124107]
[1732201741510,34.0408,249.7,249.45,34.07994107]
[1732201741511,30.07124107,249.55,249.45,34.07994107]
[1732201741706,30.07124107,249.54,249.43,30.07124107]
[1732201742123,4.0075,249.53,249.43,30.07124107]
[1732201742433,30.07124107,249.46,249.37,30.07124107]
[1732201742821,30.07124107,249.48,249.38,4.0099]
[1732201743010,30.07124107,249.5,249.41,30.07124107]
[1732201743340,4.0072,249.55,249.47,30.07124107]
[1732201743537,30.07124107,249.62,249.52,30.07124107]
[1732201743712,30.07124107,249.66,249.56,30.07124107]
[1732201744111,4.0049,249.69,249.6,34.07754107]
[1732201744431,30.07124107,249.72,249.62,30.07124107]
[1732201744613,30.07124107,249.76,249.66,30.07124107]
[1732201744809,30.07124107,249.78,249.68,30.07124107]
[1732201745011,30.07124107,249.8,249.7,30.07124107]
[1732201745218,30.07124107,249.84,249.74,30.07124107]
[1732201745432,30.07124107,249.8,249.7,30.07124107]
[1732201745735,30.07124107,249.77,249.67,30.07124107]
[1732201746026,30.07124107,249.79,249.67,30.07124107]
[1732201746326,30.07124107,249.86,249.76,30.07124107]
[1732201746539,30.07124107,249.88,249.78,30.07124107]
[1732201746711,30.07124107,249.89,249.78,30.07124107]
[1732201746916,30.07124107,249.89,249.8,30.07124107]
[1732201747110,30.07124107,249.89,249.77,30.07124107]
[1732201747327,30.07124107,249.85,249.75,30.07124107]
[1732201747533,30.07124107,249.81,249.69,30.07124107]
[1732201747830,30.07124107,249.75,249.65,30.07124107]
[1732201748026,30.07124107,249.73,249.63,30.07124107]
[1732201748233,4.0044,249.72,249.63,30.07124107]
[1732201748441,30.07124107,249.71,249.61,30.07124107]
[1732201748613,34.07524107,249.75,249.65,30.07124107]
[1732201748817,24.0036,249.78,249.67,30.07124107]
[1732201749020,30.07124107,249.75,249.63,30.07124107]
[1732201749418,30.07124107,249.73,249.63,30.07124107]
[1732201749837,30.07124107,249.69,249.59,30.07124107]
[1732201750024,23.776884,249.76,249.57,30.07124107]
[1732201750025,30.07124107,249.67,249.57,30.07124107]
[1732201750215,23.776884,249.68,249.59,30.07124107]
[1732201750417,30.07124107,249.69,249.59,30.07124107]
[1732201750641,30.07124107,249.67,249.57,30.07124107]
[1732201751040,1.0,249.79,249.54,14.0254]
[1732201751041,20.0048,249.94,249.66,30.07124107]
[1732201751245,0.5,249.88,249.67,30.07124107]
[1732201751418,30.07124107,249.78,249.65,30.07124107]
[1732201751843,30.07124107,249.74,249.63,30.07124107]
[1732201752214,4.0043,249.73,249.63,30.07124107]
[1732201752416,23.776884,249.72,249.63,30.07124107]
[1732201752616,4.0043,249.73,249.67,30.07124107]
[1732201752845,30.07124107,249.8,249.71,30.07124107]
[1732201753020,30.07124107,249.78,249.66,30.07124107]
[1732201753226,34.07404107,249.82,249.7,30.07124107]
[1732201753843,34.07404107,249.82,249.62,14.0211]
[1732201753844,30.07124107,249.79,249.68,30.07124107]
[1732201754336,4.0035,249.78,249.68,30.07124107]
[1732201754541,4.0035,249.78,249.62,10.0152]